fUSD/lending_fUSD_20240215
["ID","MTS","AMOUNT","RATE_DAILY","PERIOD"]
[314141839,1708019483215,-500.0,0.00039726,7]
[314141840,1708019483224,-1634.49,0.00039726,7]
[314141841,1708019483234,-500.0,0.00039726,7]
[314141842,1708019483243,-2514.11,0.00039726,7]
[314141843,1708019483252,-500.0,0.00039726,7]
[314141844,1708019483263,-500.0,0.00039726,7]
[314141845,1708019483273,-4422.2,0.00039726,7]
[314141846,1708019483283,-500.0,0.00039726,7]
[314141847,1708019483293,-500.0,0.00039726,7]
[314141848,1708019483302,-500.0,0.00039726,7]
[314141849,1708019483312,-663.11,0.00039726,7]
[314141850,1708019483321,-500.0,0.00039726,7]
[314141851,1708019483331,-500.0,0.00039726,7]
[314141852,1708019483342,-775.66,0.00039726,7]
[314141853,1708019483352,-198.63450098,0.00039726,7]
[314141854,1708019483362,-500.0,0.00039726,7]
[314141855,1708019483372,-500.0,0.00039726,2]
[314141856,1708019483382,-607.71,0.00039726,7]
[314141857,1708019483392,-500.0,0.00039726,7]
[314141858,1708019483401,-500.0,0.00039726,7]
[314141859,1708019483411,-500.0,0.00039726,7]
[314141860,1708019483421,-500.0,0.00039726,7]
[314141861,1708019483432,-500.0,0.00039726,7]
[314141862,1708019483447,-500.0,0.00039726,7]
[314141863,1708019483457,-500.0,0.00039726,7]
[314141864,1708019483467,-500.0,0.00039726,7]
[314141865,1708019483477,-1744.6,0.00039726,7]
[314141866,1708019483487,-912.33,0.00039726,7]
[314141867,1708019483496,-500.0,0.00039726,7]
[314141868,1708019483506,-500.0,0.00039726,7]
[314141869,1708019483519,-500.0,0.00039726,7]
[314141870,1708019483528,-500.0,0.00039726,7]
[314141871,1708019483538,-500.0,0.00039726,7]
[314141872,1708019483548,-1155.45,0.00039726,7]
[314141873,1708019483557,-519.85,0.00039726,7]
[314141874,1708019483567,-1067.47,0.00039726,7]
[314141875,1708019483576,-4410.01,0.00039726,7]
[314141876,1708019483589,-11001.71,0.00039726,7]
[314141877,1708019483599,-500.0,0.00039726,7]
[314141878,1708019483608,-500.0,0.00039726,7]
[314141879,1708019483617,-500.0,0.00039726,7]
[314141880,1708019483627,-3091.91,0.00039726,7]
[314141881,1708019483637,-1258.05,0.00039726,7]
[314141882,1708019483646,-500.0,0.00039726,7]
[314141883,1708019483656,-172.85,0.00039726,7]
[314141884,1708019483666,-842.08,0.00039726,7]
[314141885,1708019483675,-922.13,0.00039726,7]
[314141886,1708019483685,-656.01,0.00039726,7]
[314141887,1708019483695,-500.0,0.00039726,7]
[314141888,1708019483704,-904.53,0.00039726,7]
[314141889,1708019483713,-3344.4,0.00039726,7]
[314141890,1708019483723,-2961.74,0.00039726,7]
[314141891,1708019483732,-500.0,0.00039726,7]
[314141892,1708019483745,-250.51,0.00039726,7]
[314141893,1708019483754,-844.38,0.00039726,7]
[314141894,1708019483765,-500.0,0.00039726,7]
[314141895,1708019483774,-500.0,0.00039726,7]
[314141896,1708019483783,-500.0,0.00039726,7]
[314141897,1708019483793,-500.0,0.00039726,7]
[314141898,1708019483803,-500.0,0.00039726,7]
[314141899,1708019483813,-1428.06,0.00039726,7]
[314141900,1708019483823,-1125.27,0.00039726,7]
[314141901,1708019483833,-535.86,0.00039726,7]
[314141902,1708019483842,-2160.8,0.00039726,7]
[314141903,1708019483852,-500.0,0.00039726,7]
[314141904,1708019483862,-500.0,0.00039726,7]
[314141905,1708019483872,-500.0,0.00039726,7]
[314141906,1708019483882,-825.32,0.00039726,7]
[314141907,1708019483891,-537.94,0.00039726,7]
[314141908,1708019483901,-500.0,0.00039726,7]
[314141909,1708019483910,-677.81,0.00039726,7]
[314141910,1708019483920,-559.07,0.00039726,7]
[314141911,1708019483929,-500.0,0.00039726,7]
[314141912,1708019483938,-1297.24,0.00039726,7]
[314141913,1708019483948,-500.0,0.00039726,7]
[314141914,1708019483957,-500.0,0.00039726,7]
[314141915,1708019483966,-500.0,0.00039726,7]
[314141916,1708019483975,-500.0,0.00039726,7]
[314141917,1708019483984,-500.0,0.00039726,7]
[314141918,1708019483994,-500.0,0.00039726,7]
[314141919,1708019484004,-2776.05,0.00039726,7]
[314141920,1708019484014,-4055.04,0.00039726,7]
[314141921,1708019484023,-254.29293337,0.00039726,7]
[314141922,1708019484032,-500.0,0.00039726,7]
[314141923,1708019484042,-4988.27,0.00039726,7]
[314141924,1708019484051,-500.0,0.00039726,7]
[314141925,1708019484061,-500.0,0.00039726,7]
[314141926,1708019484071,-1472.71,0.00039726,7]
[314141927,1708019484081,-635.56971346,0.00039726,7]
[314141928,1708019484090,-500.0,0.00039726,7]
[314141929,1708019484099,-500.0,0.00039726,7]
[314141930,1708019484109,-500.0,0.00039726,7]
[314141931,1708019484119,-451.65,0.00039726,7]
[314141932,1708019484128,-1663.68,0.00039726,7]
[314141933,1708019484138,-500.0,0.00039726,7]
[314141934,1708019484148,-4949.84,0.00039726,7]
[314141935,1708019484158,-500.0,0.00039726,7]
[314141936,1708019484168,-1970.1,0.00039726,7]
[314141937,1708019484178,-226.23611074,0.00039726,7]
[314141938,1708019484188,-1101.62,0.00039726,7]
[314141939,1708019484198,-891.01,0.00039726,7]
[314141940,1708019484208,-500.0,0.00039726,7]
[314141941,1708019484218,-1111.21,0.00039726,7]
[314141942,1708019484228,-500.0,0.00039726,7]
[314141943,1708019484238,-1203.88,0.00039726,7]
[314141944,1708019484248,-1055.37,0.00039726,7]
[314141945,1708019484257,-500.0,0.00039726,7]
[314141946,1708019484269,-1292.58,0.00039726,7]
[314141947,1708019484280,-500.0,0.00039726,7]
[314141948,1708019484291,-735.16,0.00039726,7]
[314141949,1708019484301,-996.39,0.00039726,7]
[314141950,1708019484312,-2325.06,0.00039726,7]
[314141951,1708019484323,-500.0,0.00039726,7]
[314141952,1708019484333,-500.0,0.00039726,7]
[314141953,1708019484343,-500.0,0.00039726,7]
[314141954,1708019484353,-500.0,0.00039726,7]
[314141955,1708019484364,-500.0,0.00039726,7]
[314141956,1708019484374,-500.0,0.00039726,7]
[314141957,1708019484384,-5038.29,0.00039726,7]
[314141958,1708019484394,-500.0,0.00039726,7]
[314141959,1708019484403,-483.4,0.00039726,7]
[314141960,1708019484413,-569.41,0.00039726,7]
[314141961,1708019484422,-765.74,0.00039726,7]
[314141962,1708019484431,-500.0,0.00039726,7]
[314141963,1708019484440,-500.0,0.00039726,7]
[314141964,1708019484452,-500.0,0.00039726,7]
[314141965,1708019484461,-500.0,0.00039726,7]
[314141966,1708019484470,-4016.58,0.00039726,7]
[314141967,1708019484480,-524.19,0.00039726,7]
[314141968,1708019484490,-500.0,0.00039726,7]
[314141969,1708019484499,-1145.21,0.00039726,7]
[314141970,1708019484509,-836.92,0.00039726,7]
[314141971,1708019484518,-500.0,0.00039726,7]
[314141972,1708019484530,-500.0,0.00039726,7]
[314141973,1708019484540,-686.87,0.00039726,7]
[314141974,1708019484548,-619.17,0.00039726,7]
[314141975,1708019484557,-500.0,0.00039726,7]
[314141976,1708019484566,-500.0,0.00039726,7]
[314141977,1708019484575,-587.30848032,0.00039726,7]
[314141978,1708019484585,-500.0,0.00039726,7]
[314141979,1708019484594,-500.0,0.00039726,7]
[314141980,1708019484603,-1463.4,0.00039726,7]
[314141981,1708019484614,-500.0,0.00039726,7]
[314141982,1708019484623,-713.6,0.00039726,7]
[314141983,1708019484633,-3254.19,0.00039726,7]
[314141984,1708019484642,-607.96,0.00039726,7]
[314141985,1708019484651,-535.23046889,0.00039726,7]
[314141986,1708019484660,-556.07,0.00039726,7]
[314141987,1708019484670,-500.0,0.00039726,7]
[314141988,1708019484679,-500.0,0.00039726,7]
[314141989,1708019484689,-500.0,0.00039726,7]
[314141990,1708019484698,-500.0,0.00039726,7]
[314141991,1708019484708,-500.0,0.00039726,7]
[314141992,1708019484717,-500.0,0.00039726,7]
[314141993,1708019484726,-1450.92,0.00039726,7]
[314141994,1708019484736,-1417.47,0.00039726,7]
[314141995,1708019484745,-500.0,0.00039726,7]
[314141996,1708019484754,-500.0,0.00039726,7]
[314141997,1708019484764,-553.92,0.00039726,7]
[314141998,1708019484773,-500.0,0.00039726,7]
[314141999,1708019484783,-2730.4,0.00039726,7]
[314142000,1708019484793,-585.8,0.00039726,7]
[314142001,1708019484802,-5934.21,0.00039726,7]
[314142002,1708019484812,-633.51,0.00039726,7]
[314142003,1708019484822,-1019.85,0.00039726,7]
[314142004,1708019484833,-701.09,0.00039726,7]
[314142005,1708019484842,-500.0,0.00039726,7]
[314142006,1708019484851,-1857.32,0.00039726,7]
[314142007,1708019484861,-3563.59,0.00039726,7]
[314142008,1708019484871,-500.0,0.00039726,7]
[314142009,1708019484881,-4513.55,0.00039726,7]
[314142010,1708019484891,-500.0,0.00039726,7]
[314142011,1708019484902,-500.0,0.00039726,7]
[314142012,1708019484912,-1548.7,0.00039726,7]
[314142013,1708019484921,-500.0,0.00039726,7]
[314142014,1708019484931,-707.65,0.00039726,2]
[314142015,1708019484940,-611.21930927,0.00039726,7]
[314142016,1708019484950,-1098.48,0.00039726,7]
[314142017,1708019484958,-6547.24,0.00039726,7]
[314142018,1708019484968,-531.51979583,0.00039726,7]
[314142019,1708019484978,-500.0,0.00039726,7]
[314142020,1708019484987,-995.72,0.00039726,7]
[314142021,1708019484997,-993.29,0.00039726,7]
[314142022,1708019485007,-500.0,0.00039726,7]
[314142023,1708019485019,-500.0,0.00039726,7]
[314142024,1708019485029,-47725.72,0.00039726,7]
[314142025,1708019485038,-5000.54,0.00039726,7]
[314142026,1708019485047,-1324.67,0.00039726,7]
[314142027,1708019485057,-500.0,0.00039726,7]
[314142028,1708019485067,-1048.47,0.00039726,7]
[314142029,1708019485077,-1233.71,0.00039726,7]
[314142030,1708019485087,-2120.05,0.00039726,7]
[314142031,1708019485096,-239.61850405,0.00039726,7]
[314142032,1708019485106,-3896.96,0.00039726,7]
[314142033,1708019485116,-552.81,0.00039726,7]
[314142034,1708019485126,-500.0,0.00039726,7]
[314142035,1708019485136,-4265.71,0.00039726,7]
[314142036,1708019485146,-500.0,0.00039726,7]
[314142037,1708019485156,-724.89,0.00039726,7]
[314142038,1708019485167,-500.0,0.00039726,7]
[314142039,1708019485177,-588.09,0.00039726,7]
[314142040,1708019485187,-9575.52,0.00039726,7]
[314142041,1708019485197,-513.7,0.00039726,7]
[314142042,1708019485207,-500.0,0.00039726,7]
[314142043,1708019485217,-2093.78,0.00039726,7]
[314142044,1708019485227,-500.0,0.00039726,7]
[314142045,1708019485237,-152.77622427,0.0003974,5]
[314142046,1708019485246,-543.67,0.00039749,2]
[314142047,1708019485256,-4478.51933852,0.0003975,120]
[314142048,1708019485267,-3540.281519,0.0003976,2]
[314142049,1708019485277,-6658.31173517,0.00039776,13]
[314142050,1708019485288,-7397.883764,0.0003978,12]
[314142051,1708019485297,-151.0,0.00039785,7]
[314142052,1708019485307,-152.03,0.00039789,2]
[314142053,1708019485316,-23496.02574456,0.000398,2]
[314142054,1708019485326,-6666.99721077,0.000398,7]
[314142055,1708019485336,-200.0,0.000398,2]
[314142056,1708019485346,-200.0,0.000398,14]
[314142057,1708019485356,-3376.593249,0.000398,9]
[314142058,1708019485366,-200.0,0.000398,2]
[314142059,1708019485377,-260.48,0.000398,2]
[314142060,1708019485387,-200.0,0.000398,2]
[314142061,1708019485397,-200.0,0.000398,2]
[314142062,1708019485406,-200.0,0.000398,2]
[314142063,1708019485416,-200.0,0.000398,2]
[314142064,1708019485425,-200.0,0.000398,2]
[314142065,1708019485438,-200.0,0.000398,2]
[314142066,1708019485447,-317.0,0.000398,2]
[314142067,1708019485459,-302.608365,0.00039851,2]
[314142068,1708019485468,-150.0,0.00039851,2]
[314142069,1708019485478,-2281.099806,0.00039851,2]
[314142070,1708019485487,-315.499401,0.00039851,2]
[314142071,1708019485496,-151.0,0.00039859,2]
[314142072,1708019485505,-369.55506604,0.0003986,12]
[314142073,1708019485516,-6511.83,0.00039863,7]
[314142074,1708019485526,-6511.83,0.00039863,7]
[314142075,1708019485536,-1010.06258199,0.00039869,30]
[314142076,1708019485545,-2114.35,0.000399,7]
[314142077,1708019485555,-2998.41,0.000399,7]
[314142078,1708019485564,-2160.89,0.000399,7]
[314142079,1708019485574,-50000.0,0.000399,2]
[314142080,1708019485585,-202.40053058,0.000399,30]
[314142081,1708019485595,-666.0,0.00039934,2]
[314142082,1708019485605,-152.77622427,0.00039937,6]
[314142083,1708019485614,-543.67,0.00039941,2]
[314142084,1708019485623,-212.0,0.0003995,2]
[314142085,1708019485633,-212.0,0.0003995,2]
[314142086,1708019485642,-209.0,0.0003995,2]
[314142087,1708019485652,-150.0,0.00039972,2]
[314142088,1708019485662,-27273.1931856,0.00039973,2]
[314142089,1708019485671,-9044.4612513,0.00039973,2]
[314142090,1708019485682,-3694.5988921,0.00039973,2]
[314142091,1708019485692,-3284.0832795,0.00039973,2]
[314142092,1708019485704,-77953.3567927,0.00039973,2]
[314142093,1708019485713,-2785.9042221,0.00039973,2]
[314142094,1708019485724,-61043.0765371,0.00039973,2]
[314142095,1708019485735,-6658.31173517,0.00039983,13]
[314142096,1708019485745,-200.0,0.00039987,3]
[314142097,1708019485755,-200.0,0.00039987,2]
[314142098,1708019485767,-200.0,0.00039987,4]
[314142099,1708019485777,-378.22223709,0.00039999,31]
[314142100,1708019485787,-500.0,0.00039999,31]
[314142101,1708019485796,-500.0,0.00039999,31]
[314142102,1708019485805,-500.0,0.00039999,31]
[314142103,1708019485815,-500.0,0.00039999,31]
[314142104,1708019485824,-500.0,0.00039999,31]
[314142105,1708019485833,-500.0,0.00039999,31]
[314142106,1708019485842,-500.0,0.00039999,31]
[314142107,1708019485851,-500.0,0.00039999,31]
[314142108,1708019485860,-500.0,0.00039999,31]
[314142109,1708019485870,-500.0,0.00039999,31]
[314142110,1708019485879,-612.07342744,0.00039999,31]
[314142111,1708019485889,-500.0,0.00039999,31]
[314142112,1708019485898,-500.0,0.00039999,31]
[314142113,1708019485910,-500.0,0.00039999,31]
[314142114,1708019485920,-500.0,0.00039999,31]
[314142115,1708019485929,-400.0,0.00039999,31]
[314142116,1708019485938,-500.0,0.00039999,31]
[314142117,1708019485948,-500.0,0.00039999,31]
[314142118,1708019485957,-500.0,0.00039999,31]
[314142119,1708019485967,-500.0,0.00039999,31]
[314142120,1708019485977,-500.0,0.00039999,31]
[314142121,1708019485987,-500.0,0.00039999,31]
[314142122,1708019485997,-600.0,0.00039999,31]
[314142123,1708019486006,-500.0,0.00039999,31]
[314142124,1708019486017,-510.16174727,0.00039999,31]
[314142125,1708019486027,-500.0,0.00039999,31]
[314142126,1708019486036,-500.0,0.00039999,31]
[314142127,1708019486046,-500.0,0.00039999,31]
[314142128,1708019486055,-500.0,0.00039999,31]
[314142129,1708019486065,-500.0,0.00039999,31]
[314142130,1708019486075,-500.0,0.00039999,31]
[314142131,1708019486085,-500.0,0.00039999,31]
[314142132,1708019486095,-523.71074364,0.00039999,31]
[314142133,1708019486105,-469.98271964,0.00039999,31]
[314142134,1708019486116,-198.54515207,0.00039999,31]
[314142135,1708019486126,-500.0,0.00039999,31]
[314142136,1708019486136,-500.0,0.00039999,31]
[314142137,1708019486147,-500.0,0.00039999,31]
[314142138,1708019486157,-500.0,0.00039999,31]
[314142139,1708019486167,-396.5230175,0.00039999,31]
[314142140,1708019486177,-500.0,0.00039999,31]
[314142141,1708019486188,-500.0,0.00039999,31]
[314142142,1708019486198,-500.0,0.00039999,31]
[314142143,1708019486209,-273.40290968,0.00039999,31]
[314142144,1708019486219,-500.0,0.00039999,31]
[314142145,1708019486229,-500.0,0.00039999,31]
[314142146,1708019486239,-500.0,0.00039999,31]
[314142147,1708019486249,-500.0,0.00039999,31]
[314142148,1708019486259,-500.0,0.00039999,31]
[314142149,1708019486272,-500.0,0.00039999,31]
[314142150,1708019486282,-405.17432604,0.00039999,31]
[314142151,1708019486291,-500.0,0.00039999,31]
[314142152,1708019486301,-500.0,0.00039999,31]
[314142153,1708019486311,-500.0,0.00039999,31]
[314142154,1708019486322,-500.0,0.00039999,31]
[314142155,1708019486333,-500.0,0.00039999,31]
[314142156,1708019486343,-500.0,0.00039999,31]
[314142157,1708019486353,-312.79557893,0.00039999,31]
[314142158,1708019486363,-500.0,0.00039999,31]
[314142159,1708019486373,-500.0,0.00039999,31]
[314142160,1708019486383,-463.27202151,0.00039999,31]
[314142161,1708019486394,-500.0,0.00039999,31]
[314142162,1708019486404,-471.27345593,0.00039999,31]
[314142163,1708019486414,-500.0,0.00039999,31]
[314142164,1708019486425,-500.0,0.00039999,31]
[314142165,1708019486435,-500.0,0.00039999,31]
[314142166,1708019486446,-201.42116556,0.00039999,31]
[314142167,1708019486458,-500.0,0.00039999,31]
[314142168,1708019486468,-500.0,0.00039999,31]
[314142169,1708019486478,-500.0,0.00039999,31]
[314142170,1708019486488,-500.0,0.00039999,31]
[314142171,1708019486498,-500.0,0.00039999,31]
[314142172,1708019486508,-500.0,0.00039999,31]
[314142173,1708019486519,-500.0,0.00039999,31]
[314142174,1708019486530,-150.48801862,0.00039999,31]
[314142175,1708019486539,-500.0,0.00039999,31]
[314142176,1708019486549,-500.0,0.00039999,31]
[314142177,1708019486559,-500.0,0.00039999,31]
[314142178,1708019486569,-500.0,0.00039999,31]
[314142179,1708019486580,-500.0,0.00039999,31]
[314142180,1708019486589,-354.39216762,0.00039999,31]
[314142181,1708019486599,-500.0,0.00039999,31]
[314142182,1708019486608,-500.0,0.00039999,31]
[314142183,1708019486618,-350.0,0.00039999,31]
[314142184,1708019486628,-500.0,0.00039999,31]
[314142185,1708019486637,-200.0,0.00039999,31]
[314142186,1708019486647,-500.0,0.00039999,31]
[314142187,1708019486656,-500.0,0.00039999,31]
[314142188,1708019486666,-150.0,0.00039999,31]
[314142189,1708019486676,-500.0,0.00039999,31]
[314142190,1708019486686,-500.0,0.00039999,31]
[314142191,1708019486696,-500.0,0.00039999,31]
[314142192,1708019486858,-500.0,0.00039999,31]
[314142193,1708019486869,-500.0,0.00039999,31]
[314142194,1708019486879,-500.0,0.00039999,31]
[314142195,1708019486889,-500.0,0.00039999,31]
[314142196,1708019486899,-500.0,0.00039999,31]
[314142197,1708019486910,-400.0,0.00039999,31]
[314142198,1708019486920,-554.41600993,0.00039999,31]
[314142199,1708019486930,-300.0,0.00039999,31]
[314142200,1708019486940,-500.0,0.00039999,31]
[314142201,1708019486949,-500.0,0.00039999,31]
[314142202,1708019486959,-600.0,0.00039999,31]
[314142203,1708019486968,-500.0,0.00039999,31]
[314142204,1708019486978,-500.0,0.00039999,31]
[314142205,1708019486987,-500.0,0.00039999,31]
[314142206,1708019486996,-380.46400425,0.00039999,31]
[314142207,1708019487006,-500.0,0.00039999,31]
[314142208,1708019487017,-150.0,0.00039999,2]
[314142209,1708019487026,-150.0,0.00039999,2]
[314142210,1708019487035,-100000.0,0.0004,20]
[314142211,1708019487045,-709011.63521536,0.0004,30]
[314142212,1708019487054,-500.0,0.0004,7]
[314142213,1708019487063,-1021.0,0.0004,30]
[314142214,1708019487073,-10000.0,0.0004,20]
[314142215,1708019487083,-10000.0,0.0004,20]
[314142216,1708019487093,-700.0,0.0004,30]
[314142217,1708019487102,-70061.0,0.0004,7]
[314142218,1708019487112,-69386.54344356,0.0004,2]
[314142219,1708019487122,-504.6589539,0.0004,30]
[314142220,1708019487131,-2303.5698407,0.0004,3]
[314142221,1708019487141,-1586.34204916,0.0004,15]
[314142222,1708019487150,-10000.0,0.0004,20]
[314142223,1708019487161,-192.84909817,0.0004,2]
[314142224,1708019487171,-20000.0,0.0004,2]
[314142225,1708019487181,-320574.7563621,0.0004,30]
[314142226,1708019487191,-10000.0,0.0004,20]
[314142227,1708019487201,-10000.0,0.0004,20]
[314142228,1708019487211,-5505.54884911,0.0004,5]
[314142229,1708019487221,-300.0,0.0004,18]
[314142230,1708019487230,-7633.14660781,0.0004,10]
[314142231,1708019487240,-5115.0,0.0004,30]
[314142232,1708019487249,-500.0,0.0004,7]
[314142233,1708019487259,-200.0,0.0004,30]
[314142234,1708019487272,-10000.0,0.0004,20]
[314142235,1708019487281,-17505.89573911,0.0004,120]
[314142236,1708019487291,-112327.61703365,0.0004,7]
[314142237,1708019487301,-161.73731233,0.0004,7]
[314142238,1708019487310,-500.0,0.0004,4]
[314142239,1708019487320,-500.0,0.0004,2]
[314142240,1708019487330,-500.0,0.0004,2]
[314142241,1708019487339,-20547.64286166,0.0004,30]
[314142242,1708019487348,-1000.0,0.0004,9]
[314142243,1708019487357,-514.54,0.0004,120]
[314142244,1708019487367,-1000.0,0.0004,6]
[314142245,1708019487376,-2000.0,0.0004,10]
[314142246,1708019487386,-500.0,0.0004,10]
[314142247,1708019487395,-4500.0,0.0004,2]
[314142248,1708019487405,-1186.46542308,0.0004,7]
[314142249,1708019487414,-5000.0,0.0004,10]
[314142250,1708019487424,-5000.0,0.0004,10]
[314142251,1708019487434,-5192.0,0.0004,10]
[314142252,1708019487444,-500.0,0.0004,7]
[314142253,1708019487457,-23468.4832033,0.0004,11]
[314142254,1708019487467,-5790.05000524,0.0004,30]
[314142255,1708019487477,-500000.0,0.0004,4]
[314142256,1708019487488,-108493.58939229,0.0004,30]
[314142257,1708019487498,-1000.0,0.0004,2]
[314142258,1708019487509,-2110.0,0.0004,15]
[314142259,1708019487522,-46505.26816579,0.0004,10]
[314142260,1708019487533,-300.0,0.0004,41]
[314142261,1708019487544,-255.0,0.0004,12]
[314142262,1708019487554,-200.0,0.0004,7]
[314142263,1708019487564,-255.0,0.0004,12]
[314142264,1708019487574,-207.08859098,0.0004,2]
[314142265,1708019487584,-500.0,0.0004,7]
[314142266,1708019487594,-255.0,0.0004,12]
[314142267,1708019487605,-541.83,0.0004,7]
[314142268,1708019487615,-500.0,0.0004,7]
[314142269,1708019487625,-500.0,0.0004,7]
[314142270,1708019487636,-530.12,0.0004,7]
[314142271,1708019487646,-856.02,0.0004,7]
[314142272,1708019487657,-500.0,0.0004,7]
[314142273,1708019487667,-255.0,0.0004,12]
[314142274,1708019487677,-500.0,0.0004,7]
[314142275,1708019487687,-500.0,0.0004,7]
[314142276,1708019487697,-500.0,0.0004,7]
[314142277,1708019487707,-185.57552411,0.0004,7]
[314142278,1708019487718,-500.0,0.0004,7]
[314142279,1708019487727,-567.93358565,0.0004,30]
[314142280,1708019487737,-497.04541366,0.0004,7]
[314142281,1708019487746,-500.0,0.0004,7]
[314142282,1708019487756,-500.0,0.0004,7]
[314142283,1708019487766,-500.0,0.0004,7]
[314142284,1708019487776,-500.0,0.0004,7]
[314142285,1708019487785,-500.0,0.0004,7]
[314142286,1708019487794,-579.50655673,0.0004,7]
[314142287,1708019487804,-500.0,0.0004,7]
[314142288,1708019487814,-550.0,0.0004,7]
[314142289,1708019487823,-500.0,0.0004,7]
[314142290,1708019487833,-756.7,0.0004,7]
[314142291,1708019487842,-704.22,0.0004,7]
[314142292,1708019487851,-500.0,0.0004,7]
[314142293,1708019487862,-500.0,0.0004,7]
[314142294,1708019487871,-500.0,0.0004,7]
[314142295,1708019487880,-500.0,0.0004,7]
[314142296,1708019487889,-500.0,0.0004,7]
[314142297,1708019487899,-1361.43,0.0004,7]
[314142298,1708019487908,-500.0,0.0004,7]
[314142299,1708019487918,-500.0,0.0004,7]
[314142300,1708019487927,-500.0,0.0004,7]
[314142301,1708019487937,-1000.0,0.0004,7]
[314142302,1708019487946,-265.07504005,0.0004,7]
[314142303,1708019487955,-500.0,0.0004,7]
[314142304,1708019487964,-252.25,0.0004,7]
[314142305,1708019487974,-500.0,0.0004,7]
[314142306,1708019487983,-1271.29,0.0004,7]
[314142307,1708019487992,-312.91862033,0.0004,7]
[314142308,1708019488002,-500.0,0.0004,7]
[314142309,1708019488012,-500.0,0.0004,7]
[314142310,1708019488022,-598.49,0.0004,7]
[314142311,1708019488032,-209.52,0.0004,7]
[314142312,1708019488042,-500.0,0.0004,7]
[314142313,1708019488051,-974.33,0.0004,7]
[314142314,1708019488061,-255.5029159,0.0004,120]
[314142315,1708019488071,-291.28228053,0.0004,7]
[314142316,1708019488080,-500.0,0.0004,7]
[314142317,1708019488090,-500.0,0.0004,7]
[314142318,1708019488100,-500.0,0.0004,7]
[314142319,1708019488109,-500.0,0.0004,7]
[314142320,1708019488119,-255.0,0.0004,12]
[314142321,1708019488129,-500.0,0.0004,7]
[314142322,1708019488139,-500.0,0.0004,7]
[314142323,1708019488148,-500.0,0.0004,7]
[314142324,1708019488158,-475.03684359,0.0004,7]
[314142325,1708019488168,-500.0,0.0004,7]
[314142326,1708019488178,-500.0,0.0004,7]
[314142327,1708019488188,-500.0,0.0004,7]
[314142328,1708019488198,-693.16,0.0004,7]
[314142329,1708019488207,-176.31,0.0004,7]
[314142330,1708019488217,-500.0,0.0004,7]
[314142331,1708019488226,-754.3842302,0.0004,2]
[314142332,1708019488236,-300.70907213,0.0004,7]
[314142333,1708019488246,-500.0,0.0004,7]
[314142334,1708019488257,-177.14,0.0004,7]
[314142335,1708019488267,-500.0,0.0004,7]
[314142336,1708019488276,-500.0,0.0004,7]
[314142337,1708019488286,-1893.96,0.0004,7]
[314142338,1708019488296,-1000.0,0.0004,7]